bitfinex/quotes_ETHUSD_20250810
["timestamp","ask_amount","ask_price","bid_price","bid_amount"]
[1754852007056,0.002,4236.2,4236.1,6.04606192]
[1754852007874,0.002,4236.2,4236.1,6.49016192]
[1754852009774,0.002,4236.2,4236.1,6.04606192]
[1754852009974,0.002,4236.2,4236.1,6.49016192]
[1754852010542,0.002,4236.2,4236.1,7.92525185]
[1754852010747,0.002,4236.2,4236.1,8.41725185]
[1754852010948,0.002,4236.7,4236.2,2.9106062]
[1754852011171,0.002,4236.7,4236.6,2.36038332]
[1754852011474,0.002,4236.7,4236.6,6.04478332]
[1754852011675,0.002,4236.7,4236.6,6.48888332]
[1754852012257,0.002,4236.7,4236.6,6.04478332]
[1754852013178,0.04,4236.9,4236.7,2.91032761]
[1754852013473,0.04,4236.9,4236.8,5.9262719]
[1754852013645,0.04,4236.9,4236.8,6.3703719]
[1754852016581,0.04,4236.9,4236.8,5.9262719]
[1754852016983,0.9901,4236.9,4236.8,5.9262719]
[1754852018882,0.5172,4236.9,4236.8,5.9262719]
[1754852019088,0.04,4236.9,4236.8,5.9262719]
[1754852019867,0.04,4236.9,4236.8,6.4762719]
[1754852020067,0.04,4236.9,4236.8,7.86028185]
[1754852020266,0.5172,4236.9,4236.8,5.9262719]
[1754852020668,0.04,4236.9,4236.8,5.9262719]
[1754852020985,0.5172,4236.9,4236.8,5.9262719]
[1754852021863,0.9901,4236.9,4236.8,5.9262719]
[1754852022511,0.5172,4236.9,4236.8,3.566]
[1754852022665,0.9901,4236.9,4236.8,3.566]
[1754852023101,0.9901,4236.9,4236.8,5.9262719]
[1754852023402,0.9901,4236.9,4236.7,2.36031107]
[1754852023563,0.9501,4236.8,4236.7,2.36031107]
[1754852024666,0.9501,4236.8,4236.6,2.47878277]
[1754852024918,0.04,4236.9,4236.6,2.47878277]
[1754852024919,0.9501,4236.7,4236.6,2.47878277]
[1754852025207,0.9501,4236.7,4236.6,0.1184]
[1754852025377,0.9501,4236.7,4235.1,0.708877]
[1754852025378,0.9501,4236.7,4235.1,2.36121933]
[1754852025577,0.04,4236.9,4236.0,0.1184]
[1754852025578,2.36049602,4236.4,4236.0,0.1184]
[1754852025886,0.9501,4236.6,4235.7,3.57]
[1754852025887,3.64171843,4236.3,4235.7,3.57]
[1754852026062,2.69161843,4236.3,4235.8,0.1184]
[1754852026261,3.31070969,4236.2,4235.8,0.1184]
[1754852026498,3.31072095,4236.2,4235.4,5.93101282]
[1754852026703,0.4772,4236.1,4235.6,0.1184]
[1754852026874,1.27882233,4236.0,4235.7,0.001]
[1754852027388,1.27882233,4236.0,4235.9,0.1184]
[1754852027389,0.32872233,4236.0,4235.9,0.1184]
[1754852027563,0.4698,4236.3,4235.9,0.1184]
[1754852027766,0.9169,4236.2,4235.9,0.1184]
[1754852028013,0.4698,4236.1,4235.9,0.1184]
[1754852028289,0.9169,4236.1,4235.9,0.1184]
[1754852028499,0.4698,4236.0,4235.9,0.1184]
[1754852029503,0.9169,4236.0,4235.9,0.1184]
[1754852030079,1.24464527,4236.0,4235.9,0.1184]
[1754852030475,1.24464527,4236.0,4235.7,0.001]
[1754852030677,0.9169,4235.9,4235.7,0.001]
[1754852031225,2.36070706,4236.1,4235.7,0.001]
[1754852031410,0.9169,4235.8,4235.7,0.001]
[1754852036219,1.0353,4236.2,4235.7,0.001]
[1754852036414,1.0353,4236.2,4235.7,2.36188451]
[1754852036619,0.9050808,4236.2,4235.7,2.36188451]
[1754852036821,0.4698,4236.1,4235.7,2.36188451]
[1754852037023,0.9169,4236.1,4235.7,0.001]
[1754852037217,0.4698,4236.0,4235.7,0.001]
[1754852038112,0.4471,4235.9,4235.7,0.001]
[1754852038422,0.9169,4235.9,4235.7,0.001]
[1754852038631,0.4471,4235.9,4235.7,0.001]
[1754852038802,0.4698,4235.8,4235.7,0.001]
[1754852040128,0.9169,4235.8,4235.7,0.001]
[1754852040325,6.39612912,4235.8,4235.7,0.001]
[1754852040507,10.84281466,4235.8,4235.7,0.001]
[1754852044236,7.27181466,4235.8,4235.7,0.001]
[1754852044424,10.84281466,4235.8,4235.7,0.001]
[1754852046326,10.84281466,4235.8,4235.7,1e-08]
[1754852046526,12.12037131,4235.8,4235.7,1e-08]
[1754852047940,16.12037131,4235.8,4235.7,1e-08]
[1754852049436,46.00197131,4235.8,4235.7,1e-08]
[1754852050143,46.636433,4235.8,4235.7,1e-08]
[1754852050321,46.00197131,4235.8,4235.7,1e-08]
[1754852051742,46.09656031,4235.8,4235.7,1e-08]
[1754852051947,53.26647892,4235.8,4235.7,1e-08]
[1754852053244,53.26656106,4235.8,4235.7,1e-08]
[1754852053450,53.04635313,4235.8,4235.7,1e-08]
[1754852053930,53.68081482,4235.8,4235.7,1e-08]
[1754852054126,2.36121933,4235.1,4234.8,0.001]
[1754852054332,12.92234602,4235.1,4235.0,1e-08]
[1754852054635,14.56683248,4235.1,4235.0,1e-08]
[1754852054839,14.66142548,4235.1,4235.0,1e-08]
[1754852055548,9.99052072,4235.1,4235.0,1e-08]
[1754852056247,10.46032072,4235.1,4235.0,1e-08]
[1754852056620,10.90742072,4235.1,4235.0,1e-08]
[1754852057217,10.46032072,4235.1,4235.0,1e-08]
[1754852059137,10.46020379,4235.1,4235.0,1e-08]
[1754852059338,10.57860379,4235.1,4235.0,1e-08]
[1754852060225,10.57856722,4235.1,4235.0,1e-08]
[1754852060727,10.57857694,4235.1,4235.0,1e-08]
[1754852061562,11.03117694,4235.1,4235.0,1e-08]
[1754852064031,10.57857694,4235.1,4235.0,1e-08]
[1754852066260,11.21258405,4235.1,4235.0,1e-08]
[1754852068185,10.57857694,4235.1,4235.0,1e-08]
[1754852073184,11.42566708,4235.1,4235.0,1e-08]
[1754852073554,11.42639202,4235.1,4235.0,1e-08]
[1754852073955,11.42789012,4235.1,4235.0,1e-08]
[1754852074154,10.57930188,4235.1,4235.0,1e-08]
[1754852076598,10.57959577,4235.1,4235.0,1e-08]
[1754852082488,10.10979577,4235.1,4235.0,1e-08]
[1754852082690,5.91127508,4235.0,4234.8,1e-08]
[1754852082892,2.36149813,4234.6,4234.5,1e-08]
[1754852083192,11.17784432,4234.6,4234.5,1e-08]
[1754852083390,11.17784432,4234.6,4233.8,0.4702]
[1754852083391,2.361777,4234.1,4233.8,0.4702]
[1754852083688,9.15203282,4234.1,4233.8,0.4702]
[1754852083891,11.84143344,4234.1,4233.6,0.041]
[1754852084101,12.76423344,4234.1,4233.6,0.041]
[1754852084477,12.88109234,4234.1,4233.6,0.041]
[1754852084792,12.42849234,4234.1,4233.6,0.041]
[1754852085895,12.88109234,4234.1,4233.6,0.041]
[1754852086799,12.42849234,4234.1,4233.6,0.041]
[1754852087097,11.94439234,4234.1,4233.6,0.041]
[1754852087300,12.88109234,4234.1,4233.6,0.041]
[1754852087540,12.42849234,4234.1,4233.6,0.041]
[1754852087876,12.42849234,4234.1,4233.6,0.4987]
[1754852088073,13.06514091,4234.1,4233.6,0.4987]
[1754852088275,13.06494257,4234.1,4233.6,0.4987]
[1754852088977,13.99984257,4234.1,4233.6,0.4987]
[1754852089182,12.58084257,4234.1,4233.6,0.4987]
[1754852090402,12.58084257,4234.1,4233.6,0.041]
[1754852090702,13.03634257,4234.1,4233.6,0.4987]
[1754852091203,13.03621954,4234.1,4233.6,0.4987]
[1754852092289,12.39957097,4234.1,4233.6,0.4987]
[1754852092900,13.03621954,4234.1,4233.6,0.4987]
[1754852093100,13.03621954,4234.1,4233.6,0.041]
[1754852093312,5.91183278,4234.0,4233.6,0.041]
[1754852093482,7.78485368,4234.0,4233.6,0.041]
[1754852093677,8.24035368,4234.0,4233.6,0.041]
[1754852093882,8.33497668,4234.0,4233.6,0.041]
[1754852094104,8.33488771,4234.0,4233.6,0.041]
[1754852094384,7.87938771,4234.0,4233.6,0.041]
[1754852096880,7.87934181,4234.0,4233.6,0.041]
[1754852099511,10.36534181,4234.0,4233.6,0.041]
[1754852099806,7.87934181,4234.0,4233.6,0.041]
[1754852101682,7.65854223,4234.0,4233.6,0.041]
[1754852101885,7.3531097,4234.0,4233.9,0.4587]
[1754852102083,6.04923278,4234.0,4233.9,0.9575]
[1754852102395,9.04923278,4234.0,4233.9,0.9575]
[1754852108913,3.1184,4234.0,4233.9,0.9575]
[1754852109104,6.6874,4234.0,4233.9,0.9575]
[1754852109433,9.04923278,4234.0,4233.9,0.9575]
[1754852109929,9.05123278,4234.0,4233.9,0.9575]
[1754852113011,9.05123278,4234.0,4233.9,0.001]
[1754852113216,10.19252982,4234.0,4233.9,0.001]
[1754852113842,10.19252982,4234.0,4233.9,0.4587]
[1754852114002,10.19252982,4234.0,4233.9,0.9575]
[1754852114003,9.05123278,4234.0,4233.9,0.9575]
[1754852114203,5.48223278,4234.0,4233.9,0.9575]
[1754852114433,9.05123278,4234.0,4233.9,0.9575]
[1754852114858,3.1204,4234.0,4233.9,0.9575]
[1754852115134,6.6894,4234.0,4233.9,0.9575]
[1754852115339,3.1204,4234.0,4233.9,0.9575]
[1754852115515,3.6894,4234.0,4233.9,0.9575]
[1754852118941,6.05123278,4234.0,4233.9,0.9575]
[1754852119127,6.89252825,4234.0,4233.9,0.001]
[1754852119437,7.39022825,4234.0,4233.9,0.001]
[1754852121626,7.86392825,4234.0,4233.9,0.001]
[1754852122848,7.39022825,4234.0,4233.9,0.001]
[1754852123210,6.89252825,4234.0,4233.9,0.001]
[1754852124221,7.11359098,4234.0,4233.9,0.001]
[1754852124528,7.61129098,4234.0,4233.9,0.001]
[1754852124717,8.5943176,4234.0,4233.9,0.001]
[1754852125123,8.12062587,4234.0,4233.9,0.001]
[1754852125922,11.12062587,4234.0,4233.9,0.001]
[1754852126255,11.59432587,4234.0,4233.9,0.001]
[1754852128117,11.1206806,4234.0,4233.9,0.001]
[1754852129354,7.0539806,4234.0,4233.9,0.4647]
[1754852129523,9.78168513,4234.0,4233.9,0.4647]
[1754852129724,3.21268513,4234.0,4233.9,0.9333]
[1754852129937,6.78168513,4234.0,4233.9,0.9333]
[1754852130836,6.05123278,4234.0,4233.9,0.9333]
[1754852132458,0.1204,4234.0,4233.9,0.9333]
[1754852132770,3.6894,4234.0,4233.9,0.9333]
[1754852133067,6.05123278,4234.0,4233.9,0.9333]
[1754852133451,6.05123278,4234.0,4233.9,0.4647]
[1754852133971,6.05123278,4234.0,4233.9,0.001]
[1754852134472,10.39023062,4234.0,4233.9,0.001]
[1754852134674,11.59500238,4234.0,4233.9,0.001]
[1754852136741,11.59497242,4234.0,4233.9,0.001]
[1754852137438,5.36188856,4233.9,4233.8,1e-08]
[1754852137639,6.59052494,4233.9,4233.6,0.041]
[1754852137870,5.48040014,4233.7,4233.6,0.041]
[1754852138181,6.21133652,4233.7,4233.6,0.041]
[1754852138361,7.18273652,4233.7,4233.6,0.041]
[1754852138766,6.70903652,4233.7,4233.6,0.041]
[1754852139578,6.88771045,4233.7,4233.6,0.041]
[1754852139871,10.35245524,4233.7,4233.6,0.5047]
[1754852140111,10.35245524,4233.7,4233.6,0.9733]
[1754852140386,10.23405524,4233.7,4233.6,0.5047]
[1754852140674,10.35245524,4233.7,4233.6,0.5047]
[1754852141237,10.35245524,4233.7,4233.6,0.041]
[1754852141440,10.35245524,4233.7,4233.6,0.5047]
[1754852141642,10.17378131,4233.7,4233.6,0.5047]
[1754852142680,5.87396518,4233.7,4233.6,0.5047]
[1754852142847,6.05040014,4233.7,4233.6,0.9733]
[1754852143449,3.6884,4233.7,4233.6,0.9733]
[1754852144191,0.1184,4233.7,4233.6,0.9733]
[1754852144400,3.57,4233.7,4233.6,0.9733]
[1754852146297,3.571,4233.8,4233.6,0.9733]
[1754852146495,3.571,4233.8,4233.6,0.041]
[1754852146706,3.571,4233.8,4233.7,0.9323]
[1754852152433,3.571,4234.0,4233.7,0.9323]
[1754852152735,3.571,4234.0,4233.8,0.4741]
[1754852152893,3.571,4234.0,4233.8,0.9256]
[1754852153093,3.571,4234.0,4233.9,0.4741]
[1754852160221,5.93283278,4234.0,4233.7,0.4741]
[1754852160532,5.93284446,4234.0,4233.8,0.4741]
[1754852160842,3.571,4234.0,4233.9,0.4741]
[1754852161147,3.571,4234.0,4233.9,0.9256]
[1754852162023,3.571,4234.0,4233.9,3.40588856]
[1754852162024,0.002,4234.0,4233.9,3.40588856]
[1754852164614,0.002,4234.0,4233.9,1.044]
[1754852164939,0.002,4234.0,4233.9,0.5925]
[1754852170857,0.002,4234.0,4233.9,0.1184]
[1754852175028,0.002,4234.0,4233.9,0.5925]
[1754852177064,0.002,4234.0,4233.9,0.1184]
[1754852178748,0.002,4234.0,4233.9,2.94158856]
[1754852179587,0.002,4234.0,4233.9,3.39758856]
[1754852180187,0.002,4234.0,4233.9,1.0357]
[1754852180962,0.002,4234.0,4233.9,0.5797]
[1754852181557,0.002,4234.0,4233.9,2.94158856]
[1754852181772,0.002,4234.0,4233.9,3.39758856]
[1754852181975,0.002,4234.0,4233.9,3.97764643]
[1754852183679,0.002,4234.0,4233.9,4.00126531]
[1754852184886,0.002,4234.0,4233.9,3.97764643]
[1754852185967,0.002,4234.0,4233.9,7.52764643]
[1754852191407,0.002,4234.0,4233.9,7.52764643]
[1754852201224,0.002,4234.0,4233.9,6.61034643]
[1754852203024,0.002,4234.0,4233.9,5.48028856]
[1754852203316,0.002,4234.0,4233.9,5.94158856]
[1754852203522,0.002,4234.0,4233.9,6.39758856]
[1754852208637,0.002,4234.0,4233.9,6.94758856]
[1754852211556,0.002,4234.0,4233.9,6.49158856]
[1754852211725,0.002,4234.0,4233.9,7.74730223]
[1754852212544,0.002,4234.0,4233.9,8.23600223]
[1754852214243,0.002,4234.0,4233.9,7.74730223]
[1754852214444,0.002,4234.0,4233.9,8.23600223]
[1754852215359,0.002,4234.0,4233.9,7.28600223]
[1754852215941,0.002,4234.0,4233.9,7.75890223]
[1754852219579,0.002,4234.0,4233.9,8.24760223]
[1754852220369,0.002,4234.0,4233.9,7.75890223]
[1754852221492,0.002,4234.5,4234.4,2.36160967]
[1754852221638,0.002,4234.5,4234.4,6.39993892]
[1754852221952,0.002,4234.5,4234.4,6.51833892]
[1754852222372,0.4641,4234.5,4234.4,6.51833892]
[1754852223283,0.002,4234.5,4234.4,6.51833892]
[1754852224163,0.4641,4234.5,4234.4,6.51833892]
[1754852224996,0.9215,4234.5,4234.4,6.51833892]
[1754852225856,0.4641,4234.5,4234.4,6.51833892]
[1754852226055,0.9215,4234.5,4234.4,6.51833892]
[1754852226363,0.9215,4234.5,4234.4,6.04600967]
[1754852229199,0.4641,4234.5,4234.4,6.04600967]
[1754852229676,0.002,4234.5,4234.4,6.04600967]
[1754852230183,0.4641,4234.5,4234.4,6.04600967]
[1754852230390,0.002,4234.5,4234.4,6.04600967]
[1754852233690,0.4641,4234.5,4234.4,6.04600967]
[1754852234002,0.9215,4234.5,4234.4,6.04600967]
[1754852234783,0.4641,4234.5,4234.4,6.04600967]
[1754852237468,0.002,4234.5,4234.4,6.04600967]
[1754852237899,0.4616,4234.5,4234.4,6.04600967]
[1754852238739,0.002,4234.5,4234.4,6.04600967]
[1754852239126,0.002,4234.5,4234.4,10.37493797]
[1754852239328,0.002,4234.5,4234.4,10.96183797]
[1754852244235,0.002,4234.5,4234.4,10.49333797]
[1754852244808,0.002,4234.5,4234.4,10.02863797]
[1754852245818,0.002,4234.5,4234.4,9.92151497]
[1754852246643,0.002,4234.5,4234.4,9.48888667]
[1754852246816,0.4616,4234.5,4234.4,9.48888667]
[1754852248342,0.002,4234.5,4234.4,9.48888667]
[1754852249548,0.002,4234.5,4234.4,9.95358667]
[1754852252952,0.002,4234.5,4234.4,9.48888667]
[1754852256466,0.002,4234.5,4234.4,11.09581409]
[1754852256764,0.002,4234.5,4234.4,11.56051409]
[1754852257861,0.002,4234.5,4234.4,12.02901409]
[1754852262442,0.002,4234.5,4234.4,11.56051409]
[1754852262642,0.002,4234.5,4234.4,11.09581409]
[1754852262847,0.002,4234.5,4234.4,9.48888667]
[1754852264872,0.002,4234.5,4234.4,9.95358667]
[1754852265664,0.002,4234.5,4234.4,9.48888667]
[1754852266258,0.9117,4234.5,4234.4,8.93888667]
[1754852266868,0.9117,4234.5,4234.4,2.37288667]
[1754852267054,0.9117,4234.5,4234.4,5.93788667]
[1754852267370,0.9117,4234.5,4234.4,3.6834]
[1754852267671,0.9117,4234.5,4234.4,6.04500967]
[1754852269966,0.4616,4234.5,4234.4,6.04500967]
[1754852270172,0.002,4234.5,4234.4,6.04500967]
[1754852270667,0.5012,4234.5,4234.4,6.04500967]
[1754852271359,0.9659,4234.5,4234.4,6.04500967]
[1754852271753,0.5012,4234.5,4234.4,6.04500967]
[1754852271953,0.9659,4234.5,4234.4,6.04500967]
[1754852272153,0.9659,4234.5,4234.4,3.6834]
[1754852272371,0.9659,4234.5,4234.4,6.04500967]
[1754852273373,0.9659,4234.5,4234.4,3.6834]
[1754852274369,0.9659,4234.5,4234.4,6.04500967]
[1754852274571,0.5012,4234.5,4234.4,6.04500967]
[1754852274950,0.002,4234.5,4234.4,6.04500967]
[1754852275176,0.002,4235.8,4234.4,4.40567295]
[1754852275374,0.36487805,4236.8,4234.4,4.40567295]
[1754852275375,0.6365179,4236.7,4235.9,2.36077338]
[1754852275597,0.7487,4236.8,4236.6,2.36037079]
[1754852275799,0.2495,4236.8,4236.7,5.97032761]
[1754852275974,0.5987,4236.8,4236.7,5.97032761]
[1754852276297,0.5987,4236.8,4236.7,6.19135646]
[1754852276599,1.0979,4236.8,4236.7,6.19135646]
[1754852277584,0.2495,4236.8,4236.7,6.19135646]
[1754852278872,0.2495,4236.8,4236.7,3.83102885]
[1754852279574,0.7487,4236.8,4236.7,3.83102885]
[1754852280771,1.2134,4236.8,4236.7,0.22102885]
[1754852280983,3.6990119,4236.8,4236.7,0.22102885]
[1754852282877,3.7010119,4236.8,4236.7,0.22102885]
[1754852284199,1.34074,4236.8,4236.7,0.22102885]
[1754852284380,3.7010119,4236.8,4236.7,0.22102885]
[1754852285313,3.8194119,4236.8,4236.7,0.22102885]
[1754852285523,6.8194119,4236.8,4236.7,0.22102885]
[1754852290387,2.36060125,4236.3,4235.8,0.1184]
[1754852290588,2.36060125,4236.3,4235.9,0.22035276]
[1754852290787,0.4992,4236.2,4236.0,0.22035276]
[1754852291013,0.4992,4236.2,4236.1,0.22035276]
[1754852291014,0.9639,4236.2,4236.1,0.22035276]
[1754852291319,2.4789022,4236.4,4236.1,0.22035276]
[1754852291496,2.36055048,4236.3,4236.2,0.22035276]
[1754852291682,2.36055048,4236.3,4236.2,0.22035128]
[1754852292318,2.47890905,4236.4,4236.2,0.22035128]
[1754852292499,2.47890905,4236.4,4236.3,0.22035128]
[1754852294388,0.1184,4236.4,4236.3,0.22035128]
[1754852294591,2.3603947,4236.6,4236.3,0.68505128]
[1754852294936,2.4787947,4236.6,4236.4,0.22035128]
[1754852295222,0.1184,4236.6,4236.5,0.22035128]
[1754852295439,0.002,4236.8,4236.5,0.68505128]
[1754852295617,0.002,4236.8,4236.7,0.1184]
[1754852295800,0.002,4236.8,4236.7,0.33875128]
[1754852301139,0.002,4236.8,4236.7,0.78645128]
[1754852308667,0.002,4236.8,4236.7,3.14677889]
[1754852309231,0.002,4236.8,4236.7,3.62767889]
[1754852309456,0.002,4236.8,4236.7,7.82248966]
[1754852311732,0.002,4237.3,4237.2,2.36004908]
[1754852312063,0.002,4237.3,4237.2,6.17740036]
[1754852312246,0.002,4237.3,4237.2,4.38345128]
[1754852313150,0.002,4237.3,4237.2,3.93575128]
[1754852313538,0.9513,4237.3,4237.2,0.22035128]
[1754852313740,1.23152299,4237.3,4237.2,0.22035128]
[1754852313946,0.78022299,4237.3,4237.2,0.22035128]
[1754852316568,0.28222299,4237.3,4237.2,0.22035128]
[1754852317670,0.78022299,4237.3,4237.2,0.22035128]
[1754852318043,1.23152299,4237.3,4237.2,0.22035128]
[1754852319280,3.14021638,4237.3,4237.2,0.22035128]
[1754852319573,3.59151638,4237.3,4237.2,0.22035128]
[1754852322364,6.59151638,4237.3,4237.2,0.22035128]
[1754852322768,7.10050295,4237.3,4237.2,0.22035128]
[1754852326774,6.59151638,4237.3,4237.2,0.22035128]
[1754852327165,7.10068866,4237.3,4237.2,0.22035128]
[1754852327360,6.59151638,4237.3,4237.2,0.22035128]
[1754852327565,5.75981638,4237.3,4237.2,0.22035128]
[1754852327782,9.35181638,4237.3,4237.2,0.22035128]
[1754852328064,9.35181638,4237.3,4237.2,0.65135128]
[1754852328065,0.002,4237.3,4237.2,0.65135128]
[1754852328286,0.002,4237.3,4237.2,1.10955128]
[1754852332571,0.002,4237.3,4237.2,0.65135128]
[1754852332789,0.002,4237.3,4237.2,1.10955128]
[1754852332992,0.002,4237.3,4237.2,0.65135128]
[1754852333774,0.002,4237.3,4237.2,3.46960036]
[1754852335583,0.002,4237.3,4237.2,3.4698675]
[1754852335912,0.002,4237.3,4237.2,3.0116675]
[1754852336086,0.002,4237.3,4237.2,3.4698675]
[1754852338411,0.002,4237.3,4237.2,4.54210832]
[1754852338715,0.002,4237.3,4237.2,4.5420635]
[1754852339797,1.40543188,4237.7,4237.3,0.55]
[1754852340001,1.40543188,4237.7,4237.6,6.23143107]
[1754852340197,1.40543188,4237.7,4237.6,10.93020467]
[1754852340394,1.40543188,4237.7,4237.6,12.61421334]
[1754852341612,1.40543188,4237.7,4237.6,8.86020858]
[1754852341913,1.40543188,4237.7,4237.6,8.86320858]
[1754852342821,1.75477464,4238.3,4237.7,5.90977063]
[1754852343022,1.83218742,4238.5,4238.4,2.35938089]
[1754852343219,1.83218742,4238.5,4238.4,14.05109734]
[1754852343398,1.87089381,4238.6,4238.5,5.90932523]
[1754852343589,1.9483066,4238.8,4238.6,2.90926957]
[1754852343789,1.9483066,4238.8,4238.7,2.9092139]
[1754852343990,1.9483066,4238.8,4238.7,7.6199875]
[1754852344332,0.1176,4240.8,4239.6,2.35866384]
[1754852344528,3.603,4240.4,4239.8,0.1176]
[1754852344822,2.39854619,4239.9,4239.8,0.2205736]
[1754852345194,3.34984619,4239.9,4239.8,0.2205736]
[1754852345394,3.46744619,4239.9,4239.8,0.2205736]
[1754852345590,4.05003473,4239.9,4239.8,0.2205736]
[1754852345817,3.59103473,4239.9,4239.8,0.2205736]
[1754852346524,4.05003473,4239.9,4239.8,0.2205736]
[1754852348607,4.05203473,4239.9,4239.8,0.2205736]
[1754852351028,7.05203473,4239.9,4239.8,0.2205736]
[1754852352127,10.19503473,4239.9,4239.8,0.21890117]
[1754852352429,10.65403473,4239.9,4239.8,0.21890117]
[1754852354553,6.10073473,4239.9,4239.8,0.21890117]
[1754852354731,9.70273473,4239.9,4239.8,0.21890117]
[1754852355771,2.35888,4239.3,4239.2,0.1176]
[1754852355945,2.35888,4239.3,4239.2,0.33659536]
[1754852358072,2.85158,4239.3,4239.2,0.21899536]
[1754852358271,3.38437553,4239.3,4239.2,0.21899536]
[1754852359645,3.85437553,4239.3,4239.2,0.21899536]
[1754852359876,7.45437553,4239.3,4239.2,0.21899536]
[1754852360177,6.49167553,4239.3,4239.2,0.21899536]
[1754852360850,2.89167553,4239.3,4239.2,0.21899536]
[1754852361048,5.96188,4239.3,4239.2,0.65669536]
[1754852361253,5.96188,4239.3,4239.2,0.21899536]
[1754852362253,6.45458,4239.3,4239.2,0.21899536]
[1754852362878,2.35888,4239.3,4239.2,0.21899536]
[1754852363975,2.35915825,4238.8,4238.7,0.4377]
[1754852364177,2.35915825,4238.8,4238.7,0.6573325]
[1754852364540,2.35908617,4239.0,4238.7,1.1567325]
[1754852364735,2.35910259,4238.9,4238.8,1.1567325]
[1754852365966,2.35910259,4238.9,4238.8,0.6573325]
[1754852366279,0.1176,4239.4,4238.8,1.1567325]
[1754852366479,2.35893057,4239.3,4238.9,0.2196325]
[1754852366792,2.35893057,4239.3,4239.0,1.1567325]
[1754852366988,2.35893816,4239.2,4239.1,0.21988876]
[1754852371485,2.85163816,4239.2,4239.1,0.21988876]
[1754852373183,2.85163816,4239.2,4239.1,0.22040617]
[1754852373483,2.35893816,4239.2,4239.1,0.22040617]
[1754852373673,4.16497531,4239.2,4239.1,0.22040617]
[1754852373873,7.76197531,4239.2,4239.1,0.22040617]
[1754852374194,6.79927531,4239.2,4239.1,0.22040617]
[1754852374485,3.20227531,4239.2,4239.1,0.22040617]
[1754852374690,2.35893816,4239.2,4239.1,0.22040617]
[1754852374858,2.35893816,4239.2,4239.1,0.65810617]
[1754852375183,0.1176,4239.4,4239.1,1.15750617]
[1754852375388,2.47646894,4239.4,4239.2,0.22040617]
[1754852375564,2.47646894,4239.4,4239.3,0.22040617]
[1754852375884,2.47646894,4239.4,4239.3,0.65815841]
[1754852376259,2.47646894,4239.4,4239.3,0.22045841]
[1754852377355,2.47642436,4239.4,4239.3,0.65815841]
[1754852377756,2.35878342,4239.5,4239.3,1.15755841]
[1754852378082,2.35878342,4239.5,4239.4,0.65815841]
[1754852378985,2.35878342,4239.5,4239.4,0.22045841]
[1754852380700,2.35878342,4239.5,4239.4,0.65815841]
[1754852380992,2.4763292,4239.6,4239.4,0.22045841]
[1754852381198,0.1176,4239.6,4239.5,0.65815841]
[1754852381788,2.47631308,4239.6,4239.5,0.65815841]
[1754852382594,2.47631308,4239.6,4239.5,0.22045841]
[1754852383309,0.1176,4239.6,4239.5,0.65815841]
[1754852383803,8.95361506,4239.8,4239.5,0.65815841]
[1754852384105,6.7126,4239.8,4239.6,0.22045841]
[1754852384431,9.07120182,4239.8,4239.7,0.22045841]
[1754852385284,3.595,4239.8,4239.7,0.65815841]
[1754852385485,3.595,4239.8,4239.7,0.22045841]
[1754852385693,5.95360182,4239.8,4239.7,0.22045841]
[1754852385902,8.9925588,4239.9,4239.7,0.22045841]
[1754852386086,8.9925588,4239.9,4239.8,0.22045841]
[1754852386590,9.9552588,4239.9,4239.8,0.22045841]
[1754852386786,11.19838939,4239.9,4239.8,0.22045841]
[1754852389539,7.60638939,4239.9,4239.8,0.22045841]
[1754852389738,11.19738939,4239.9,4239.8,0.22045841]
[1754852390325,7.60638939,4239.9,4239.8,0.22045841]
[1754852390523,3.1596,4239.9,4239.8,0.22045841]
[1754852391659,3.7496,4239.9,4239.8,0.22045841]
[1754852391813,3.1596,4239.9,4239.8,0.22045841]
[1754852395628,0.1596,4239.9,4239.8,0.22045841]
[1754852397737,3.7476,4239.9,4239.8,0.22045841]
[1754852398079,3.7476,4239.9,4239.8,0.69235841]
[1754852398276,3.7476,4239.9,4239.8,0.22045841]
[1754852399042,4.2014,4239.9,4239.8,0.22045841]
[1754852399246,4.95529554,4239.9,4239.8,0.22045841]
[1754852399858,4.50149554,4239.9,4239.8,0.22045841]
[1754852400054,3.7476,4239.9,4239.8,0.22045841]
[1754852400353,3.7476,4239.9,4239.8,0.69235841]
[1754852400741,0.1596,4239.9,4239.8,1.16585841]
[1754852400944,0.042,4239.9,4239.8,1.16585841]
[1754852401573,0.042,4239.9,4239.8,0.69235841]
[1754852401952,0.042,4239.9,4239.8,0.22045841]
[1754852402151,0.4958,4239.9,4239.8,0.22045841]
[1754852402338,4.0818,4239.9,4239.8,0.22045841]
[1754852402542,3.628,4239.9,4239.8,0.22045841]
[1754852403241,4.69219823,4239.9,4239.8,0.22045841]
[1754852403439,7.63704442,4239.9,4239.8,0.22045841]
[1754852406050,0.76999823,4239.9,4239.8,0.22045841]
[1754852406296,3.7446,4239.9,4239.8,0.69235841]
[1754852407286,0.1596,4239.9,4239.8,0.69235841]
[1754852413086,0.1596,4239.9,4239.8,0.22045841]
[1754852414806,0.6134,4239.9,4239.8,0.22045841]
[1754852415010,0.1596,4239.9,4239.8,0.22045841]
[1754852415172,1.0831,4239.9,4239.8,0.22045841]
[1754852415369,1.08031,4239.9,4239.8,0.22045841]
[1754852415671,3.90855619,4239.9,4239.8,0.22045841]
[1754852416086,1.55001,4239.9,4239.8,0.22057112]
[1754852416371,3.90855619,4239.9,4239.8,0.22057112]
[1754852416563,6.90855619,4239.9,4239.8,0.22057112]
[1754852416767,7.63933582,4239.9,4239.8,0.22057112]
[1754852417008,8.18933582,4239.9,4239.8,0.22057112]
[1754852418009,7.63933582,4239.9,4239.8,0.22057112]
[1754852418209,10.75263582,4239.9,4239.8,0.22057112]
[1754852418501,10.29883582,4239.9,4239.8,0.22057112]
[1754852418802,11.23153582,4239.9,4239.8,0.22057112]
[1754852418992,11.01034764,4239.9,4239.8,0.22057112]
[1754852419507,11.2313519,4239.9,4239.8,0.22057112]
[1754852421198,4.59650145,4239.9,4239.8,0.22057112]
[1754852421406,7.72110145,4239.9,4239.8,0.22057112]